{"text_format":"1","workbook":"xlsx","n_sheets":4,"sheets":["Dział 1","Dział 2","Objaśnienia","Lista jednostek WORD"],"not_rendered":{"charts":0,"images":0,"macros":1,"external_links":0,"defined_names":26,"comments":1,"pivot_tables":0},"unopened":[],"bounds":{"document_bytes":16777216,"sheet_cells":100000,"rows_first":2000,"rows_last":500,"rows_between":2000,"halvings":0,"cell_chars":16384,"cell_head_chars":4096},"cells_cut":0,"cells_raw":0,"read":"whole","date_system":"1900"}

{"sheet":"Dział 1","index":0,"n_rows":85,"n_cols":11,"rows_kept":85,"cut":false,"hidden":false,"merged":[[3,4,3,7],[5,1,5,2],[5,0,11,0],[6,1,7,1],[14,1,15,1],[73,1,79,11],[24,1,25,1],[12,0,29,0],[12,1,12,2],[16,1,17,1],[18,1,20,1],[21,1,22,1],[31,0,35,0],[32,1,35,1],[36,0,41,0],[66,4,66,6],[37,1,41,1],[43,0,51,0],[44,1,51,1],[31,1,31,2],[42,1,42,2],[36,1,36,2],[30,1,30,2],[27,1,28,1],[4,0,4,2],[10,1,11,1],[43,1,43,2],[52,1,52,2],[60,0,62,0],[64,1,64,2],[60,1,60,2],[63,1,63,2],[53,1,58,1],[59,1,59,2],[52,0,58,0],[61,1,62,1]]}
["WOJEWÓDZKIE OŚRODKI RUCHU DROGOWEGO",null,null,null,"Rok 2024",null,null,{"$f":"H6+H13+H32+H37+H43+H44+H53+I1","v":0},null,null,{"$f":"C2<>\"\"","v":false}]
[null,"Województwo:",null,null,"dane wstępne",null,null,null,null,null,{"$f":"C3<>\"\"","v":false}]
[null,"Miasto:"]
["Dział 1. Rachunek zysków i strat ",null,null,null,"Dane w złotych*"]
["Wyszczególnienie",null,null,"wiersz","I kwartał ","I-II kwartał","I-III kwartał","I-IV kwartał","Kolumna kontrolna","Nazwa pola"]
["A.","Przychody netto ze sprzedaży i zrównane z nimi",null,1,null,null,null,{"$f":"H7+H9+H10+H11","v":0},{"$f":"H7+H9+H10+H11","v":0},"dz1w01","w01=w02+w04+w05+w06"]
[null,"I.","Przychody netto ze sprzedaży produktów",2,null,null,null,0,null,"dz1w02"]
[null,null,"w tym sprzedaż na eksport",3,null,null,null,null,null,"dz1w03"]
[null,"II.","Zmiana stanu produktów (zwiększenie-wartość dodatnia, zmniejszenie-wartość ujemna)(+,-)",4,null,null,null,null,null,"dz1w04"]
[null,"III.","Koszt wytworzenia produktów na własne potrzeby ",5,null,null,null,null,null,"dz1w05"]
[null,"IV.","Przychody netto ze sprzedaży towarów i materiałów",6,null,null,null,null,null,"dz1w06"]
[null,null,"w tym sprzedaż na eksport",7,null,null,null,null,null,"dz1w07"]
["B.","Koszty działalności operacyjnej",null,8,null,null,null,{"$f":"H14+H15+H17+H19+H22+H24+H27+H30","v":0},{"$f":"H14+H15+H17+H19+H22+H24+H27+H30","v":0},"dz1w08","w8=w09+w10+w12+w14+w17+w19+w22+w25"]
[null,"I.","Amortyzacja",9,null,null,null,null,null,"dz1w09"]
[null,"II.","Zużycie materiałów i energii",10,null,null,null,null,null,"dz1w10"]
[null,null,"w tym energii",11,null,null,null,null,null,"dz1w11"]
[null,"III.","Usługi obce",12,null,null,null,null,null,"dz1w12"]
[null,null,"w  tym zakupione w celu odsprzedaży (podwykonawstwo)",13,null,null,null,null,null,"dz1w13"]
[null,"IV.","Podatki i opłaty",14,null,null,null,null,null,"dz1w14"]
[null,null,"w tym podatek akcyzowy",15,null,null,null,null,null,"dz1w15"]
[null,null,"     w tym ze sprzedaży produktów",16,null,null,null,null,null,"dz1w16"]
[null,"V.","Wynagrodzenia",17,null,null,null,null,null,"dz1w17"]
[null,null,"w tym ze stosunku pracy",18,null,null,null,null,null,"dz1w18"]
[null,"VI.","Ubezpieczenia społeczne i inne świadczenia",19,null,null,null,null,null,"dz1w19"]
[null,"w tym","składki z tytułu ubezpieczeń społecznych",20,null,null,null,null,null,"dz1w20"]
[null,null,"wydatki z tytułu szkolenia pracowników",21,null,null,null,null,null,"dz1w21"]
[null,"VII.","Pozostałe koszty rodzajowe",22,null,null,null,null,null,"dz1w22"]
[null,"w tym","podróże służbowe",23,null,null,null,null,null,"dz1w23"]
[null,null,"składki z tytułu ubezpieczeń majątkowych i osobowych",24,null,null,null,null,null,"dz1w24"]
[null,"VIII.","Wartość sprzedanych towarów i materiałów",25,null,null,null,null,null,"dz1w25"]
["C.","Zysk/strata ze sprzedaży (A-B)",null,26,{"$f":"E6-E13","v":0},{"$f":"F6-F13","v":0},{"$f":"G6-G13","v":0},{"$f":"H6-H13","v":0},{"$f":"H6-H13","v":0},"dz1w26","w26= w01-w08"]
["D.","Pozostałe przychody operacyjne",null,27,null,null,null,{"$f":"H33+H34+H35","v":0},{"$f":"H33+H34+H35","v":0},"dz1w27","w27=w28+w29+w30"]
[null,"z tego","I. Zysk z tytulu rozchodu niefinansowych aktywów trwałych",28,null,null,null,null,null,"dz1w28"]
[null,null,"II. Dotacje",29,null,null,null,null,null,"dz1w29"]
[null,null,"III. Inne przychody operacyjne",30,null,null,null,null,null,"dz1w30"]
[null,null,"w tym rozwiązane rezerwy",31,null,null,null,null,null,"dz1w31"]
["E.","Pozostałe koszty operacyjne",null,32,null,null,null,{"$f":"H38+H39+H40","v":0},{"$f":"H38+H39+H40","v":0},"dz1w32","w32=w33+w34+w35"]
[null,"z tego","I. Strata  z tytulu rozchodu niefinansowych aktywów trwałych",33,null,null,null,null,null,"dz1w33"]
[null,null,"II. Aktualizacja wartości aktywów niefinansowych",34,null,null,null,null,null,"dz1w34"]
[null,null,"III. Inne koszty operacyjne, w tym:",35,null,null,null,null,null,"dz1w35"]
[null,null,"rezerwy na przyszłe zobowiązania ",36,null,null,null,null,null,"dz1w36"]
[null,null,"odpisane wierzytelności (w wyniku postępowań upadłościowych, układowych i naprawczych)",37,null,null,null,null,null,"dz1w37"]
["F.","Zysk/strata  z działalności operacyjnej (C+D-E)",null,38,{"$f":"E31+E32-E37","v":0},{"$f":"F31+F32-F37","v":0},{"$f":"G31+G32-G37","v":0},{"$f":"H31+H32-H37","v":0},{"$f":"H6-H13+H32-H37","v":0},"dz1w38","w38=w01-w08+w27-w32"]
["G.","Przychody finansowe",null,39,null,null,null,{"$f":"H45+H46+H49+H50+H51","v":0},{"$f":"H45+H46+H49+H50+H51","v":0},"dz1w39","w39= w40+w41+w44+w45+w46"]
[null,"z tego","I. Dywidendy i udziały w zyskach",40,null,null,null,null,null,"dz1w40"]
[null,null,"II. Odsetki",41,null,null,null,null,null,"dz1w41"]
[null,null,"w tym odsetki od dłużnych papierów wartościowych, udzielonych pożyczek i kredytów oraz od lokat i środków pieniężnych",42,null,null,null,null,null,"dz1w42"]
[null,null,"w tym odsetki od pożyczek udzielonych innym przedsiębiorstwom powiązanym (w szczególności innym WORD-om)",43,null,null,null,null,null,"dz1w43"]
[null,null,"III. Zysk  z tytułu rozchodu aktywów finansowych",44,null,null,null,null,null,"dz1w44"]
[null,null,"IV.Aktualizacja wartości  aktywów finansowych",45,null,null,null,null,null,"dz1w45"]
[null,null,"V. Inne",46,null,null,null,null,null,"dz1w46"]
[null,null,"w tym nadwyżka dodatnich różnic kursowych nad ujemnymi",47,null,null,null,null,null,"dz1w47"]
["H.","Koszty finansowe",null,48,null,null,null,{"$f":"H54+H56+H57+H58","v":0},{"$f":"H54+H56+H57+H58","v":0},"dz1w48","w48=w49+w51+w52+w53"]
[null,"z tego","I. Odsetki",49,null,null,null,null,null,"dz1w49"]
[null,null,"w tym odsetki od kredytów i pożyczek",50,null,null,null,null,null,"dz1w50"]
[null,null,"II. Strata ze zbycia inwestycji",51,null,null,null,null,null,"dz1w51"]
[null,null,"III.Aktualizacja wartości inwestycji",52,null,null,null,null,null,"dz1w52"]
[null,null,"IV.Inne",53,null,null,null,null,null,"dz1w53"]
[null,null,"w tym nadwyżka ujemnych różnic kursowych nad dodatnimi",54,null,null,null,null,null,"dz1w54"]
["I. ","Zysk/ strata z działalności gospodarczej (F+G-H)",null,55,{"$f":"E43+E44-E53","v":0},{"$f":"F43+F44-F53","v":0},{"$f":"G43+G44-G53","v":0},{"$f":"H43+H44-H53","v":0},{"$f":"H6-H13+H32-H37+H44-H53","v":0},"dz1w55","w55=w01-w08+w27-w32+w39-w48"]
["J.","Podatek dochodowy",null,56,null,null,null,{"$f":"H62+H63","v":0},{"$f":"H62+H63","v":0},"dz1w56","w56=w57+w58"]
[null,"z tego","część bieżąca ",57,null,null,null,null,null,"dz1w57"]
[null,null,"część odroczona",58,null,null,null,null,null,"dz1w58"]
["K.","Pozostałe obowiązkowe zmniejszenia zysku (zwiększenia straty)",null,59,null,null,null,null,null,"dz1w59"]
["L."," Zysk/strata netto (I-J-K)",null,60,{"$f":"E60-E61-E64","v":0},{"$f":"F60-F61-F64","v":0},{"$f":"G60-G61-G64","v":0},{"$f":"H60-H61-H64","v":0},{"$f":"H6-H13+H32-H37+H44-H53-H61-H64","v":0},"dz1w60","w60=w01-w08+w27-w32+w39-w48-w56-w59"]
[null,null,null,null,"Jeśli wypełnione zostały dane w wierszach 1-60 to proszę nie wypełniać  wierszy 61-63"]
[null,null,null,null,"Dane w złotych*"]
[null,null,null,null,"I kwartał ","I-II kwartał","I-III kwartał"]
[null,null,"Przychody ogółem (A+D+G)",61,null,null,null,{"$f":"IF(F84+ F85=2,\"Błąd ! Jeśli wypełnione zostały dane w wierszach 1-60 to proszę nie wypełniać  wierszy 61-63 \",\"\")","v":""}]
[null,null,"Koszty ogółem (B+E+H+J+K)",62]
[null,null,"Wynik (L)",63,{"$f":"E69-E70","v":0},{"$f":"F69-F70","v":0},{"$f":"G69-G70","v":0}]
["* dopuszcza się wprowadzenie danych z dwoma miejscami po przecinku"]
[]
["Wyjaśnienia: "]
[]
[]
[]
[]
[]
[]
[null,null,"…………………………………………………….."]
[null,null,"Imię, nazwisko i telefon osoby sporządzającej sprawozdanie"]
[]
[null,null,null,null,{"$f":"SUM(E6:G60)","v":0},{"$f":"IF(E84<>0,1,0)","v":0}]
[null,null,null,null,{"$f":"SUM(E69:G70)","v":0},{"$f":"IF(E85<>0,1,0)","v":0}]

{"sheet":"Dział 2","index":1,"n_rows":144,"n_cols":19,"rows_kept":144,"cut":false,"hidden":false,"merged":[[139,0,139,4],[134,1,138,1],[79,3,79,4],[25,1,39,1],[29,2,38,2],[30,3,33,3],[35,3,38,3],[39,3,39,4],[64,3,64,4],[100,1,107,1],[100,2,100,4],[101,3,101,4],[115,1,133,1],[115,2,115,4],[116,2,120,2],[116,3,116,4],[118,3,119,3],[134,2,134,4],[135,3,135,4],[136,2,138,2],[136,3,136,4],[102,3,102,4],[121,2,132,2],[51,3,51,4],[143,1,149,11],[4,10,4,11],[86,0,86,5],[86,6,86,7],[86,10,86,11],[87,0,88,5],[87,10,87,11],[4,6,4,7],[5,8,5,9],[4,8,4,9],[86,8,86,9],[87,8,87,9],[80,2,80,4],[82,0,82,4],[43,1,43,4],[44,1,49,1],[44,2,44,4],[45,3,45,4],[43,0,81,0],[133,3,133,4],[108,2,108,4],[109,3,109,4],[99,0,138,0],[99,1,99,4],[5,10,5,11],[4,0,4,5],[87,6,87,7],[89,0,98,0],[89,1,89,4],[90,2,90,4],[91,2,91,4],[92,2,92,4],[93,2,93,4],[94,2,94,4],[21,3,21,4],[22,1,24,1],[5,0,6,5],[22,2,22,4],[23,3,23,4],[24,3,24,4],[12,3,12,4],[13,1,21,1],[97,2,97,4],[98,2,98,4],[5,6,5,7],[7,0,42,0],[65,2,78,2],[56,3,56,4],[53,3,54,3],[110,2,114,2],[110,3,110,4],[107,3,107,4],[63,1,79,1],[63,2,63,4],[95,2,95,4],[96,2,96,4],[106,3,106,4],[51,2,55,2],[50,1,62,1],[50,2,50,4],[58,3,59,3],[121,3,121,4],[106,2,107,2],[71,3,74,3],[76,3,78,3],[108,1,114,1],[105,3,105,4],[81,2,81,4],[126,3,127,3],[56,2,62,2],[103,2,104,2],[103,3,103,4],[104,3,104,4],[66,3,69,3],[7,1,7,4],[8,1,12,1],[8,2,8,4],[9,3,9,4],[42,3,42,4],[49,3,49,4],[10,3,10,4],[11,3,11,4],[13,2,13,4],[40,1,42,1],[40,2,40,4],[41,3,41,4],[46,3,46,4],[25,2,25,4],[26,3,26,4],[27,3,27,4],[28,3,28,4],[14,2,19,2],[47,3,47,4],[48,3,48,4],[14,3,14,4],[20,3,20,4]]}
["WOJEWÓDZKIE OŚRODKI RUCHU DROGOWEGO",null,null,null,null,null,"Rok 2024",{"$f":"G8+G9+G14+G15+G23+G26+G29+G30+G35+G41+G44+G45+G51+G52+G53+G57+G58+G64+G65+G66+G71+G83+G90+G100+G101+G103+G106+G109+G111+G116+G117+G118+G122 +H8+H9+H14+H15+H23+H26+H29+H30+H35+H41+H44+H45+H51+H52+H53+H57+H58+H64+H65+H66+H71+H83+H90+H100+H101+H103+H106+H109+H111+H116+H117+H118+H122","v":0},null,null,{"$f":"C2<>\"\"","v":false}]
[null,"Województwo:",null,null,null,null,"dane wstępne",null,null,null,{"$f":"C3<>\"\"","v":false}]
[null,"Miasto:"]
["Dział 2. Bilans"]
["Wyszczególnienie",null,null,null,null,null,"Dane w złotych*",null,"Kolumna kontrolna",null,"Nazwa pola"]
["Aktywa",null,null,null,null,null,"stan na ",null,"stan na ",null,"stan na "]
[null,null,null,null,null,null," początek roku","koniec roku"," początek roku","koniec roku"," początek roku","koniec roku"]
["A.","Aktywa trwałe",null,null,null,1,{"$f":"G9+G14+G23+G26+G41","v":0},{"$f":"H9+H14+H23+H26+H41","v":0},{"$f":"G9+G14+G23+G26+G41","v":0},{"$f":"H9+H14+H23+H26+H41","v":0},"dz2w01r01","dz2w01r02",null,"w01r01=w02r01+w07r01+w16r01+w19r01+w34r01",null,null,null,null,"w01r02=w02r02+w07r02+w16r02+w19r02+w34r02"]
[null,"I.","Wartości niematerialne i prawne",null,null,2,{"$f":"G10+G11+G12+G13","v":0},{"$f":"H10+H11+H12+H13","v":0},{"$f":"G10+G11+G12+G13","v":0},{"$f":"H10+H11+H12+H13","v":0},"dz2w02r01","dz2w02r02",null,"w02r01=w03r01+w04r01+w05r01+w06r01",null,null,null,null,"w02r02=w03r02+w04r02+w05r02+w06r02"]
[null,null,"1.","Koszty zakończonych prac rozwojowych",null,3,null,null,null,null,"dz2w03r01","dz2w03r02"]
[null,null,"2.","Wartość firmy",null,4,null,null,null,null,"dz2w04r01","dz2w04r02"]
[null,null,"3.","Inne wartości niematerialne i prawne",null,5,null,null,null,null,"dz2w05r01","dz2w05r02"]
[null,null,"4.","Zaliczki na wartości niematerialne i prawne",null,6,null,null,null,null,"dz2w06r01","dz2w06r02"]
[null,"II.","Rzeczowe aktywa trwałe",null,null,7,{"$f":"G15+G21+G22","v":0},{"$f":"H15+H21+H22","v":0},{"$f":"G15+G21+G22","v":0},{"$f":"H15+H21+H22","v":0},"dz2w07r01","dz2w07r02",null,"w07r01=w08r01+w14r01+w15r01",null,null,null,null,"w07r02=w08r02+w14r02+w15r02"]
[null,null,"1.","Środki trwałe",null,8,{"$f":"G16+G17+G18+G19+G20","v":0},{"$f":"H16+H17+H18+H19+H20","v":0},{"$f":"G16+G17+G18+G19+G20","v":0},{"$f":"H16+H17+H18+H19+H20","v":0},"dz2w08r01","dz2w08r02",null,"w08r01=w09r01+w10r01+w11r01+w12r01+w13r01",null,null,null,null,"w08r02=w09r02+w10r02+w11r02+w12r02+w13r02"]
[null,null,null,"a)","grunty (w tym prawo użytkowania wieczystego gruntu)",9,null,null,null,null,"dz2w09r01","dz2w09r02"]
[null,null,null,"b)","budynki, lokale i obiekty inżynierii lądowej i wodnej",10,null,null,null,null,"dz2w10r01","dz2w10r02"]
[null,null,null,"c)","urządzenia techniczne i maszyny",11,null,null,null,null,"dz2w11r01","dz2w11r02"]
[null,null,null,"d)","środki transportu",12,null,null,null,null,"dz2w12r01","dz2w12r02"]
[null,null,null,"e)","inne środki trwałe",13,null,null,null,null,"dz2w13r01","dz2w13r02"]
[null,null,"2.","Środki trwałe w budowie",null,14,null,null,null,null,"dz2w14r01","dz2w14r02"]
[null,null,"3.","Zaliczki na środki trwałe w budowie",null,15,null,null,null,null,"dz2w15r01","dz2w15r02"]
[null,"III.","Należności długoterminowe",null,null,16,{"$f":"G24+G25","v":0},{"$f":"H24+H25","v":0},{"$f":"G24+G25","v":0},{"$f":"H24+H25","v":0},"dz2w16r01","dz2w16r02",null,"w16r01=w17r01+w18r01",null,null,null,null,"w16r02=w17r02+w18r02"]
[null,null,"1.","Od jednostek powiązanych",null,17,null,null,null,null,"dz2w17r01","dz2w17r02"]
[null,null,"2.","Od pozostałych jednostek",null,18,null,null,null,null,"dz2w18r01","dz2w18r02"]
[null,"IV.","Inwestycje długoterminowe",null,null,19,{"$f":"G27+G28+G29+G40","v":0},{"$f":"H27+H28+H29+H40","v":0},{"$f":"G27+G28+G29+G40","v":0},{"$f":"H27+H28+H29+H40","v":0},"dz2w19r01","dz2w19r02",null,"w19r01=w20r01+w21r01+w22r01+w33r01",null,null,null,null,"w19r02=w20r02+w21r02+w22r02+w33r02"]
[null,null,"1.","Nieruchomości",null,20,null,null,null,null,"dz2w20r01","dz2w20r02"]
[null,null,"2.","Wartości niematerialne i prawne",null,21,null,null,null,null,"dz2w21r01","dz2w21r02"]
[null,null,"3.","Długoterminowe aktywa finansowe",null,22,{"$f":"G30+G35","v":0},{"$f":"H30+H35","v":0},{"$f":"G30+G35","v":0},{"$f":"H30+H35","v":0},"dz2w22r01","dz2w22r02",null,"w22r01=w23r01+w28r01",null,null,null,null,"w22r02=w23r02+w28r02"]
[null,null,null,"a)","w jednostkach powiązanych ",23,{"$f":"G31+G32+G33+G34","v":0},{"$f":"H31+H32+H33+H34","v":0},{"$f":"G31+G32+G33+G34","v":0},{"$f":"H31+H32+H33+H34","v":0},"dz2w23r01","dz2w23r02",null,"w23r01=w24r01+w25r01+w26r01+w27r01",null,null,null,null,"w23r02=w24r02+w25r02+w26r02+w27r02"]
[null,null,null,"z tego","udziały lub akcje",24,null,null,null,null,"dz2w24r01","dz2w24r02"]
[null,null,null,null,"inne papiery wartościowe",25,null,null,null,null,"dz2w25r01","dz2w25r02"]
[null,null,null,null,"udzielone pożyczki",26,null,null,null,null,"dz2w26r01","dz2w26r02"]
[null,null,null,null,"inne długoterminowe aktywa finansowe",27,null,null,null,null,"dz2w27r01","dz2w27r02"]
[null,null,null,"b)","w pozostałych jednostkach",28,{"$f":"G36+G37+G38+G39","v":0},{"$f":"H36+H37+H38+H39","v":0},{"$f":"G36+G37+G38+G39","v":0},{"$f":"H36+H37+H38+H39","v":0},"dz2w28r01","dz2w28r02",null,"w28r01=w29r01+w30r01+w31r01+w32r01",null,null,null,null,"w28r02=w29r02+w30r02+w31r02+w32r02"]
[null,null,null,"z tego","udziały lub akcje",29,null,null,null,null,"dz2w29r01","dz2w29r02"]
[null,null,null,null,"inne papiery wartościowe",30,null,null,null,null,"dz2w30r01","dz2w30r02"]
[null,null,null,null,"udzielone pożyczki",31,null,null,null,null,"dz2w31r01","dz2w31r02"]
[null,null,null,null,"inne długoterminowe aktywa finansowe",32,null,null,null,null,"dz2w32r01","dz2w32r02"]
[null,null,"4.","Inne inwestycje długoterminowe",null,33,null,null,null,null,"dz2w33r01","dz2w33r02"]
[null,"V.","Długoterminowe rozliczenia międzyokresowe",null,null,34,{"$f":"G42+G43","v":0},{"$f":"H42+H43","v":0},{"$f":"G42+G43","v":0},{"$f":"H42+H43","v":0},"dz2w34r01","dz2w34r02",null,"w34r01=w35r01+w36r01",null,null,null,null,"w34r02=w35r02+w36r02"]
[null,null,"1.","Aktywa z tytułu odroczonego podatku dochodowego",null,35,null,null,null,null,"dz2w35r01","dz2w35r02"]
[null,null,"2.","Inne rozliczenia międzyokresowe",null,36,null,null,null,null,"dz2w36r01","dz2w36r02"]
["B.","Aktywa obrotowe",null,null,null,37,{"$f":"G45+G51+G64+G81+G82","v":0},{"$f":"H45+H51+H64+H81+H82","v":0},{"$f":"G45+G51+G64+G81+G82","v":0},{"$f":"H45+H51+H64+H81+H82","v":0},"dz2w37r01","dz2w37r02",null,"w37r01=w38r01+w44r01+w57r01+w74r01+w75r01",null,null,null,null,"w37r02=w38r02+w44r02+w57r02+w74r02+w75r02"]
[null,"I.","Zapasy",null,null,38,{"$f":"G46+G47+G48+G49+G50","v":0},{"$f":"H46+H47+H48+H49+H50","v":0},{"$f":"G46+G47+G48+G49+G50","v":0},{"$f":"H46+H47+H48+H49+H50","v":0},"dz2w38r01","dz2w38r02",null,"w38r01=w39r01+w40r01+w41r01+w42r01+w43r01",null,null,null,null,"w38r02=w39r02+w40r02+w41r02+w42r02+w43r02"]
[null,null,"1.","Materiały",null,39,null,null,null,null,"dz2w39r01","dz2w39r02"]
[null,null,"2.","Półprodukty i produkty w toku",null,40,null,null,null,null,"dz2w40r01","dz2w40r02"]
[null,null,"3.","Produkty gotowe",null,41,null,null,null,null,"dz2w41r01","dz2w41r02"]
[null,null,"4.","Towary",null,42,null,null,null,null,"dz2w42r01","dz2w42r02"]
[null,null,"5.","Zaliczki na dostawy",null,43,null,null,null,null,"dz2w43r01","dz2w43r02"]
[null,"II.","Należności krótkoterminowe",null,null,44,{"$f":"G52+G57","v":0},{"$f":"H52+H57","v":0},{"$f":"G52+G57","v":0},{"$f":"H52+H57","v":0},"dz2w44r01","dz2w44r02",null,"w44r01=w45r01+w50r01",null,null,null,"w44r02=w45r02+w50r02"]
[null,null,"1.","Należności od jednostek powiązanych",null,45,{"$f":"G53+G56","v":0},{"$f":"H53+H56","v":0},{"$f":"G53+G56","v":0},{"$f":"H53+H56","v":0},"dz2w45r01","dz2w45r02",null,"w45r01=w46r01+w49r01",null,null,null,"w45r02=w46r02+w49r02"]
[null,null,null,"a)","z tytułu dostaw i usług, o okresie spłaty:",46,{"$f":"G54+G55","v":0},{"$f":"H54+H55","v":0},{"$f":"G54+G55","v":0},{"$f":"H54+H55","v":0},"dz2w46r01","dz2w46r02",null,"w46r01=w47r01+w48r01",null,null,null,"w46r02=w47r02+w48r02"]
[null,null,null,null,"do 12 miesięcy",47,null,null,null,null,"dz2w47r01","dz2w47r02"]
[null,null,null,null,"powyżej 12 miesięcy",48,null,null,null,null,"dz2w48r01","dz2w48r02"]
[null,null,null,"b)","inne",49,null,null,null,null,"dz2w49r01","dz2w49r02"]
[null,null,"2.","Należności od pozostałych jednostek",null,50,{"$f":"G58+G61+G62+G63","v":0},{"$f":"H58+H61+H62+H63","v":0},{"$f":"G58+G61+G62+G63","v":0},{"$f":"H58+H61+H62+H63","v":0},"dz2w50r01","dz2w50r02",null,"w50r01=w51r01+w54r01+w55r01+w56r01",null,null,null,"w50r02=w51r02+w54r02+w55r02+w56r02"]
[null,null,null,"a)","z tytułu dostaw i usług, o okresie spłaty:",51,{"$f":"G59+G60","v":0},{"$f":"H59+H60","v":0},{"$f":"G59+G60","v":0},{"$f":"H59+H60","v":0},"dz2w51r01","dz2w51r02",null,"w51r01=w52r01+w53r01",null,null,null,"w51r02=w52r02+w53r02"]
[null,null,null,null,"do 12 miesięcy",52,null,null,null,null,"dz2w52r01","dz2w52r02"]
[null,null,null,null,"powyżej 12 miesięcy",53,null,null,null,null,"dz2w53r01","dz2w53r02"]
[null,null,null,"b)","z tytułu podatków, dotacji, ceł, ubezpieczeń społecznnych i zdrowotnych oraz innych świadczeń",54,null,null,null,null,"dz2w54r01","dz2w54r02"]
[null,null,null,"c)","inne",55,null,null,null,null,"dz2w55r01","dz2w55r02"]
[null,null,null,"d)","dochodzone na drodze sądowej",56,null,null,null,null,"dz2w56r01","dz2w56r02"]
[null,"III.","Inwestycje krótkoterminowe",null,null,57,{"$f":"G65+G80","v":0},{"$f":"H65+H80","v":0},{"$f":"G65+G80","v":0},{"$f":"H65+H80","v":0},"dz2w57r01","dz2w57r02",null,"w57r01=w58r01+w73r01",null,null,null,"w57r02=w58r02+w73r02"]
[null,null,"1.","Krótkoterminowe aktywa finansowe",null,58,{"$f":"G66+G71+G76","v":0},{"$f":"H66+H71+H76","v":0},{"$f":"G66+G71+G76","v":0},{"$f":"H66+H71+H76","v":0},"dz2w58r01","dz2w58r02",null,"w58r01=w59r01+w64r01+w69r01",null,null,null,"w58r02=w59r02+w64r02+w69r02"]
[null,null,null,"a)","w jednostkach powiązanych ",59,{"$f":"G67+G68+G69+G70","v":0},{"$f":"H67+H68+H69+H70","v":0},{"$f":"G67+G68+G69+G70","v":0},{"$f":"H67+H68+H69+H70","v":0},"dz2w59r01","dz2w59r02",null,"w59r01=w60r01+w61r01+w62r01+w63r01",null,null,null,"w59r02=w60r02+w61r02+w62r02+w63r02"]
[null,null,null,null,"udziały lub akcje",60,null,null,null,null,"dz2w60r01","dz2w60r02"]
[null,null,null,null,"inne papiery wartościowe",61,null,null,null,null,"dz2w61r01","dz2w61r02"]
[null,null,null,null,"udzielone pożyczki",62,null,null,null,null,"dz2w62r01","dz2w62r02"]
[null,null,null,null,"inne krótkoterminowe aktywa finansowe",63,null,null,null,null,"dz2w63r01","dz2w63r02"]
[null,null,null,"b)","w pozostałych jednostkach",64,{"$f":"G72+G73+G74+G75","v":0},{"$f":"H72+H73+H74+H75","v":0},{"$f":"G72+G73+G74+G75","v":0},{"$f":"H72+H73+H74+H75","v":0},"dz2w64r01","dz2w64r02",null,"w64r01=w65r01+w66r01+w67r01+w68r01",null,null,null,"w64r02=w65r02+w66r02+w67r02+w68r02"]
[null,null,null,null,"udziały lub akcje",65,null,null,null,null,"dz2w65r01","dz2w65r02"]
[null,null,null,null,"inne papiery wartościowe",66,null,null,null,null,"dz2w66r01","dz2w66r02"]
[null,null,null,null,"udzielone pożyczki",67,null,null,null,null,"dz2w67r01","dz2w67r02"]
[null,null,null,null,"inne krótkoterminowe aktywa finansowe",68,null,null,null,null,"dz2w68r01","dz2w68r02"]
[null,null,null,"c)","środki pieniężne i inne aktywa pienięzne",69,{"$f":"G77+G78+G79","v":0},{"$f":"H77+H78+H79","v":0},{"$f":"G77+G78+G79","v":0},{"$f":"H77+H78+H79","v":0},"dz2w69r01","dz2w69r02",null,"w69r01=w70r01+w71r01+w72r01",null,null,null,"w69r02=w70r02+w71r02+w72r02"]
[null,null,null,null,"środki pieniężne w kasie i na rachunku",70,null,null,null,null,"dz2w70r01","dz2w70r02"]
[null,null,null,null,"inne środki pieniężne",71,null,null,null,null,"dz2w71r01","dz2w71r02"]
[null,null,null,null,"inne aktywa pieniężne",72,null,null,null,null,"dz2w72r01","dz2w72r02"]
[null,null,"2.","Inne inwestycje krótkoterminowe",null,73,null,null,null,null,"dz2w73r01","dz2w73r02"]
[null,"IV.","Krótkoterminowe rozliczenia międzyokresowe",null,null,74,null,null,null,null,"dz2w74r01","dz2w74r02"]
[null,"V.","Pojazdy egzaminacyjne używane poniżej 12 miesięcy",null,null,75,null,null,null,null,"dz2w75r01","dz2w75r02"]
["Aktywa razem",null,null,null,null,76,{"$f":"G8+G44","v":0},{"$f":"H8+H44","v":0},{"$f":"G8+G44","v":0},{"$f":"H8+H44","v":0},"dz2w76r01","dz2w76r02",null,"w76r01=w01r01+w37r01",null,null,null,"w76r02=w01r02+w37r02"]
[]
["* dopuszcza się wprowadzenie danych z dwoma miejscami po przecinku"]
[]
["Wyszczególnienie",null,null,null,null,null,"Dane w złotych*",null,"Kolumna kontrolna",null,"Nazwa pola"]
["Pasywa",null,null,null,null,null,"stan na ",null,"stan na ",null,"stan na "]
[null,null,null,null,null,null,"początek roku","koniec roku"," początek roku","koniec roku"," początek roku","koniec roku"]
["A.","Kapitał (fundusz) własny",null,null,null,77,{"$f":"G91+G92+G93+G94+G95+G96+G97+G98+G99","v":0},{"$f":"H91+H92+H93+H94+H95+H96+H97+H98+H99","v":0},{"$f":"G91+G92+G93+G94+G95+G96+G97+G98+G99","v":0},{"$f":"H91+H92+H93+H94+H95+H96+H97+H98+H99","v":0},"dz2w77r01","dz2w77r02",null,"w77r01=w78r01+w79r01+w80r01+w81r01+w82r01+w83r01+w84r01+w85r01+w86r01"]
[null,"I.","Kapitał (fundusz) podstawowy",null,null,78,null,null,null,null,"dz2w78r01","dz2w78r02",null,"w77r02=w78r02+w79r02+w80r02+w81r02+w82r02+w83r02+w84r02+w85r02+w86r02"]
[null,"II.","Należne wpłaty na kapitał podstawowy (wielkość ujemna)",null,null,79,null,null,null,null,"dz2w79r01","dz2w79r02"]
[null,"III.","Udziały (akcje) własne (wielkość ujemna)",null,null,80,null,null,null,null,"dz2w80r01","dz2w80r02"]
[null,"IV.","Kapitał (fundusz) zapasowy",null,null,81,null,null,null,null,"dz2w81r01","dz2w81r02"]
[null,"V.","Kapitał (fundusz) z aktualizacji wyceny",null,null,82,null,null,null,null,"dz2w82r01","dz2w82r02"]
[null,"VI.","Pozostałe kapitały (fundusze) rezerwowe",null,null,83,null,null,null,null,"dz2w83r01","dz2w83r02"]
[null,"VII.","Zysk (strata) z lat ubiegłych",null,null,84,null,null,null,null,"dz2w84r01","dz2w84r02"]
[null,"VIII.","Zysk (strata) netto",null,null,85,null,null,null,null,"dz2w85r01","dz2w85r02"]
[null,"IX.","Odpisy z zysku netto w ciągu roku obrotowego (wielkość ujemna)",null,null,86,null,null,null,null,"dz2w86r01","dz2w86r02"]
["B.","Zobowiązania i rezerwy na zobowiązania",null,null,null,87,{"$f":"G101+G109+G116+G135","v":0},{"$f":"H101+H109+H116+H135","v":0},{"$f":"G101+G109+G116+G135","v":0},{"$f":"H101+H109+H116+H135","v":0},"dz2w87r01","dz2w87r02",null,"w87r01=w88r01+w96r01+w103r01+w122r01",null,"w87r02=w88r02+w96r02+w103r02+w122r02"]
[null,"I.","Rezerwy na zobowiązania",null,null,88,{"$f":"G102+G103+G106","v":0},{"$f":"H102+H103+H106","v":0},{"$f":"G102+G103+G106","v":0},{"$f":"H102+H103+H106","v":0},"dz2w88r01","dz2w88r02",null,"w88r01=w89r01+w90r01+w93r01",null,"w88r02=w89r02+w90r02+w91r02"]
[null,null,"1.","Rezerwa z tyt. odroczonego podatku dochodowego",null,89,null,null,null,null,"dz2w89r01","dz2w89r02"]
[null,null,"2.","Rezerwa na świadczenia emerytalne i podobne",null,90,{"$f":"G104+G105","v":0},{"$f":"H104+H105","v":0},{"$f":"G104+G105","v":0},{"$f":"H104+H105","v":0},"dz2w90r01","dz2w90r02",null,"w90r01=w91r01+w92r01",null,"w90r02=w91r02+w92r02"]
[null,null,null,"długoterminowa",null,91,null,null,null,null,"dz2w91r01","dz2w91r02"]
[null,null,null,"krótkoterminowa",null,92,null,null,null,null,"dz2w92r01","dz2w92r02"]
[null,null,"3.","Pozostałe rezerwy",null,93,{"$f":"G107+G108","v":0},{"$f":"H107+H108","v":0},{"$f":"G107+G108","v":0},{"$f":"H107+H108","v":0},"dz2w93r01","dz2w93r02",null,"w93r01=w94r01+w95r01",null,"w93r02=w94r02+w95r02"]
[null,null,null,"długoterminowa",null,94,null,null,null,null,"dz2w94r01","dz2w94r02"]
[null,null,null,"krótkoterminowa",null,95,null,null,null,null,"dz2w95r01","dz2w95r02"]
[null,"II.","Zobowiązania długoterminowe",null,null,96,{"$f":"G110+G111","v":0},{"$f":"H110+H111","v":0},{"$f":"G110+G111","v":0},{"$f":"H110+H111","v":0},"dz2w96r01","dz2w96r02",null,"w96r01=w97r01+w98r01",null,"w96r02=w97r02+w98r02"]
[null,null,"1.","Wobec jednostek powiązanych",null,97,null,null,null,null,"dz2w97r01","dz2w97r02"]
[null,null,"2.","Wobec pozostałych jednostek",null,98,{"$f":"G112+G113+G114+G115","v":0},{"$f":"H112+H113+H114+H115","v":0},{"$f":"G112+G113+G114+G115","v":0},{"$f":"H112+H113+H114+H115","v":0},"dz2w98r01","dz2w98r02",null,"w98r01=w99r01+w100r01+w101r01+w102r01",null,null,"w98r02=w99r02+w100r02+w101r02+w102r02"]
[null,null,null,"a)","kredyty i pożyczki",99,null,null,null,null,"dz2w99r01","dz2w99r02"]
[null,null,null,"b)","z tytułu emisji dłużnych papierów wartościowych",100,null,null,null,null,"dz2w100r01","dz2w100r02"]
[null,null,null,"c)","inne zobowiązania finansowe",101,null,null,null,null,"dz2w101r01","dz2w101r02"]
[null,null,null,"d)","inne",102,null,null,null,null,"dz2w102r01","dz2w102r02"]
[null,"III.","Zobowiązania krótkoterminowe",null,null,103,{"$f":"G117+G122+G134","v":0},{"$f":"H117+H122+H134","v":0},{"$f":"G117+G122+G134","v":0},{"$f":"H117+H122+H134","v":0},"dz2w103r01","dz2w103r02",null,"w103r01=w104r01+w109r01+w121r01",null,"w103r02=w104r02+w109r02+w121r02"]
[null,null,"1.","Wobec jednostek powiązanych",null,104,{"$f":"G118+G121","v":0},{"$f":"H118+H121","v":0},{"$f":"G118+G121","v":0},{"$f":"H118+H121","v":0},"dz2w104r01","dz2w104r02",null,"w104r01=w105r01+w108r01",null,"w104r02=w105r02+w108r02"]
[null,null,null,"a)","z tytułu dostaw i usług, o okresie  wymagalności:",105,{"$f":"G119+G120","v":0},{"$f":"H119+H120","v":0},{"$f":"G119+G120","v":0},{"$f":"H119+H120","v":0},"dz2w105r01","dz2w105r02",null,"w105r01=w106r01+w107r01",null,"w105r02=w106r02+w107r02"]
[null,null,null,null,"do 12 miesięcy",106,null,null,null,null,"dz2w106r01","dz2w106r02"]
[null,null,null,null,"powyżej 12 miesięcy",107,null,null,null,null,"dz2w107r01","dz2w107r02"]
[null,null,null,"b)","inne",108,null,null,null,null,"dz2w108r01","dz2w108r02"]
[null,null,"2.","Wobec pozostałych jednostek",null,109,{"$f":"G123+G124+G125+G126+G129+G130+G131+G132+G133","v":0},{"$f":"H123+H124+H125+H126+H129+H130+H131+H132+H133","v":0},{"$f":"G123+G124+G125+G126+G129+G130+G131+G132+G133","v":0},{"$f":"H123+H124+H125+H126+H129+H130+H131+H132+H133","v":0},"dz2w109r01","dz2w109r02",null,"w109r01=w110r01+w111r01+w112r01+w113r01+w116r01+w117r01+w118r01+w119r01+w120r01"]
[null,null,null,"a)","kredyty i pożyczki",110,null,null,null,null,"dz2w110r01","dz2w110r02",null,"w109r02=w110r02+w111r02+w112r02+w113r02+w116r02+w117r02+w118r02+w119r02+w120r02"]
[null,null,null,"b)","z tytułu emisji dłużnych papierów wartościowych",111,null,null,null,null,"dz2w111r01","dz2w111r02"]
[null,null,null,"c)","inne zobowiązania finansowe",112,null,null,null,null,"dz2w112r01","dz2w112r02"]
[null,null,null,"d)","z tytułu dostaw i usług, o okresie wymagalności:",113,{"$f":"G127+G128","v":0},{"$f":"H127+H128","v":0},{"$f":"G127+G128","v":0},{"$f":"H127+H128","v":0},"dz2w113r01","dz2w113r02",null,"w113r01=w114r01+w115r01",null,"w113r02=w114r02+w115r02"]
[null,null,null,null,"do 12 miesięcy",114,null,null,null,null,"dz2w114r01","dz2w114r02"]
[null,null,null,null,"powyżej 12 miesięcy",115,null,null,null,null,"dz2w115r01","dz2w115r02"]
[null,null,null,"e)","zaliczki otrzymane na dostawy i usługi",116,null,null,null,null,"dz2w116r01","dz2w116r02"]
[null,null,null,"f)","zobowiązania wekslowe",117,null,null,null,null,"dz2w117r01","dz2w117r02"]
[null,null,null,"g)","z tytułu podatków, ceł, ubezpieczeń i innych świadczeń",118,null,null,null,null,"dz2w118r01","dz2w118r02"]
[null,null,null,"h)","z tytułu wynagrodzeń",119,null,null,null,null,"dz2w119r01","dz2w119r02"]
[null,null,null,"i)","inne",120,null,null,null,null,"dz2w120r01","dz2w120r02"]
[null,null,"3.","Fundusze specjalne",null,121,null,null,null,null,"dz2w121r01","dz2w121r02"]
[null,"IV.","Rozliczenia międzyokresowe",null,null,122,{"$f":"G136+G137","v":0},{"$f":"H136+H137","v":0},{"$f":"G136+G137","v":0},{"$f":"H136+H137","v":0},"dz2w122r01","dz2w122r02",null,"w122r01=w123r01+w124r01",null,"w122r02=w123r02+w124r02"]
[null,null,"1.","Ujemna wartość firmy",null,123,null,null,null,null,"dz2w123r01","dz2w123r02"]
[null,null,"2.","Inne rozliczenia międzyokresowe",null,124,{"$f":"G138+G139","v":0},{"$f":"H138+H139","v":0},{"$f":"G138+G139","v":0},{"$f":"H138+H139","v":0},"dz2w124r01","dz2w124r02",null,"w124r01=w125r01+w126r01",null,"w124r02=w125r02+w126r02"]
[null,null,null,"a)","długoterminowe",125,null,null,null,null,"dz2w125r01","dz2w125r02"]
[null,null,null,"b)","krótkoterminowe",126,null,null,null,null,"dz2w126r01","dz2w126r02"]
["Pasywa razem",null,null,null,null,127,{"$f":"G90+G100","v":0},{"$f":"H90+H100","v":0},{"$f":"G90+G100","v":0},{"$f":"H90+H100","v":0},"dz2w127r01","dz2w127r02",null,"w127r01=w77r01+w87r01",null,"w127r02=w77r02+w87r02"]
[null,null,null,null,null,null,null,null,{"$f":"G83-G140","v":0},{"$f":"H83-H140","v":0},"dz2w128r01","dz2w128r02"]
["* dopuszcza się wprowadzenie danych z dwoma miejscami po przecinku"]
[null,null,null,null,null,null,null,null,null,null,null,null,null,"Wartości wierszy w76r01 i w127r01 muszą być sobie równe (w76r01=w127r01)"]
["Wyjaśnienia: ",null,null,null,null,null,null,null,null,null,null,null,null,"Wartości wierszy w76r02 i w127r02 muszą być sobie równe (w76r02=w127r02)"]

{"sheet":"Objaśnienia","index":2,"n_rows":27,"n_cols":1,"rows_kept":27,"cut":false,"hidden":false,"merged":[[6,1,6,2]]}
["Wojewódzkie Ośrodki Ruchu Drogowego"]
["Objaśnienia"]
[]
["Do formularza należy wpisać dane jednostkowe dla każdego wojewódzkiego ośrodka ruchu drogowego oddzielnie."]
["Należy podać nazwę województwa oraz miasta. "]
["Należy wypełniać rubryki  \"Dane w złotych\"  w komórkach w kolorze białym (dopuszczalne jest wprowadzenie danych z dwoma miejscami po przecinku) . "]
["Nie należy wypełniać \"Kolumny kontrolnej\", w której znajdują się formuły sprawdzające  poprawność wprowadzonych danych. W przypadku rozbieżności danych należy poprawić wypełnione dane lub w uzasadnionych przypadkach podać przyczynę rozbieżności w komórce o nazwie: Wyjaśnienia."]
[]
["W przypadku danych kwartalnych w dziale 1 należy obowiązkowo wypełnić pozycje:\n- Przychody netto ze sprzedaży i zrównane z nimi (w.1), Koszty działalności operacyjnej (w.8), Pozostałe przychody operacyjne (w.27), Pozostałe koszty operacyjne (w.32),  Przychody finansowe (w.39), Koszty finansowe (w.48), Podatek dochodowy (w.56), Pozostałe obowiązkowe zmniejszenia zysku (zwiększenia straty) (w.59);\nlub\n- Przychody ogółem (w.61),  Koszty ogółem (w.62) i Wynik (w.63).  Dane w wierszach 61-63 wykazuje się tylko wtedy gdy nie wypełnione są wiersze 1-60.\n Wypełnienie pozostałych pól (zaznaczonych kolorem beżowym)  jest dobrowolne."]
[]
[]
["Znaki alfanumeryczne w nazwie pola oznaczają:"]
["- dz - numer działu"]
["- w - numer pozycji w formularzu"]
["- r01 - stan na początek roku"]
["- r02 - stan na koniec roku"]
["np.: dz2w01r01 oznacza Dział 2, pozycja 1, stan na początek roku - \"Aktywa trwałe\""]
[]
["Dział 1:"]
["Wszystkie pola rubryki \"Dane w złotych\" muszą być wypełnione przez jednostki."]
["Wartości wierszy i rubryk muszą być numeryczne."]
["Dane muszą być wyrażone w złotych (* dopuszcza się wprowadzenie danych z dwoma miejscami po przecinku)."]
[]
["Dział 2"]
["Wszystkie pola rubryk \"Dane w złotych\" muszą być wypełnione przez jednostki."]
["Wartości muszą być nieujemne( >=0) z wyjątkiem w123r01 i w123r02."]
["Dane muszą być wyrażone w złotych (* dopuszcza się wprowadzenie danych z dwoma miejscami po przecinku)."]

{"sheet":"Lista jednostek WORD","index":3,"n_rows":126,"n_cols":6,"rows_kept":126,"cut":false,"hidden":false,"merged":[]}
["Wojewódzkie Ośrodki Ruchu Drogowego"]
[null,"Urząd Marszałkowski Województwa:",null,"Miasto:","Symbol woj.","Symbol miasta:"]
[0,null,"POLSKA OGÓŁEM",null,"00"]
[null,null,null,"POLSKA OGÓŁEM"]
[1,null,"Dolnośląskiego",null,"02"]
[null,null,null,"Wrocław"]
[2,null,"Kujawsko-Pomorskiego",null,"04"]
[null,null,null,"Bydoszcz "]
[null,null,null,"Włocławek"]
[null,null,null,"Toruń"]
[3,null,"Lubelskiego",null,"06"]
[null,null,null,"Biała Podlaska"]
[null,null,null,"Chełm"]
[null,null,null,"Lublin"]
[null,null,null,"Zamość"]
[4,null,"Lubuskiego",null,"08"]
[null,null,null,"Gorzów Wielkopolski"]
[null,null,null,"Zielona Góra"]
[5,null,"Łódzkiego",null,"10"]
[null,null,null,"Łódź"]
[6,null,"Małopolskiego",null,"12"]
[null,null,null,"Kraków"]
[null,null,null,"Tarnów"]
[null,null,null,"Nowy Sącz"]
[7,null,"Mazowieckiego",null,"14"]
[null,null,null,"Radom"]
[null,null,null,"Warszawa"]
[null,null,null,"Siedlce"]
[null,null,null,"Płock"]
[null,null,null,"Ostrołęka"]
[null,null,null,"Ciechanów"]
[8,null,"Opolskiego",null,"16"]
[null,null,null,"Opole"]
[9,null,"Podkarpackiego",null,"18"]
[null,null,null,"Rzeszów"]
[null,null,null,"Krosno"]
[null,null,null,"Tarnobrzeg"]
[null,null,null,"Przemyśl"]
[10,null,"Podlaskiego",null,"20"]
[null,null,null,"Białystok"]
[null,null,null,"Łomża"]
[null,null,null,"Suwałki"]
[11,null,"Pomorskiego",null,"22"]
[null,null,null,"Gdańsk"]
[null,null,null,"Słupsk"]
[12,null,"Śląskiego",null,"24"]
[null,null,null,"Bielsko-Biała"]
[null,null,null,"Częstochowa"]
[null,null,null,"Katowice"]
[13,null,"Świętokrzyskiego",null,"26"]
[null,null,null,"Kielce"]
[14,null,"Warmińsko-Mazurskiego",null,"28"]
[null,null,null,"Olsztyn"]
[null,null,null,"Elbląg"]
[15,null,"Wielkopolskiego",null,"30"]
[null,null,null,"Poznań"]
[null,null,null,"Konin"]
[null,null,null,"Kalisz"]
[null,null,null,"Leszno"]
[null,null,null,"Piła"]
[16,null,"Zachodniopomorskiego",null,"32"]
[null,null,null,"Szczecin"]
[null,null,null,"Koszalin"]
[]
[null,null,"wojew"]
[null,null,"POLSKA","Dolnośląskie"]
[null,null,"Dolnośląskie","Wrocław"]
[null,null,"Kujawsko_Pomorskie","Kujawsko_Pomorskie"]
[null,null,"Lubelskie","Bydoszcz "]
[null,null,"Lubuskie","Włocławek"]
[null,null,"Łódzkie","Toruń"]
[null,null,"Małopolskie","Lubelskie"]
[null,null,"Mazowieckie","Biała Podlaska"]
[null,null,"Opolskie","Chełm"]
[null,null,"Podkarpackie","Lublin"]
[null,null,"Podlaskie","Zamość"]
[null,null,"Pomorskie","Lubuskie"]
[null,null,"Śląskie","Gorzów Wielkopolski"]
[null,null,"Świętokrzyskie","Zielona Góra"]
[null,null,"Warmińsko_Mazurskie","Łódzkie"]
[null,null,"Wielkopolskie","Łódź"]
[null,null,"Zachodniopomorskie","Małopolskie"]
[null,null,null,"Kraków"]
[null,null,null,"Tarnów"]
[null,null,null,"Nowy Sącz"]
[null,null,null,"Mazowieckie"]
[null,null,null,"Radom"]
[null,null,null,"Warszawa"]
[null,null,null,"Siedlce"]
[null,null,null,"Płock"]
[null,null,null,"Ostrołęka"]
[null,null,null,"Ciechanów"]
[null,null,null,"Opolskie"]
[null,null,null,"Opole"]
[null,null,null,"Podkarpackie"]
[null,null,null,"Rzeszów"]
[null,null,null,"Krosno"]
[null,null,null,"Tarnobrzeg"]
[null,null,null,"Przemyśl"]
[null,null,null,"Podlaskie"]
[null,null,null,"Białystok"]
[null,null,null,"Łomża"]
[null,null,null,"Suwałki"]
[null,null,null,"POLSKA"]
[null,null,null,"OGÓŁEM"]
[null,null,null,"Pomorskie"]
[null,null,null,"Gdańsk"]
[null,null,null,"Słupsk"]
[null,null,null,"Śląskie"]
[null,null,null,"Bielsko-Biała"]
[null,null,null,"Częstochowa"]
[null,null,null,"Katowice"]
[null,null,null,"Świętokrzyskie"]
[null,null,null,"Kielce"]
[null,null,null,"Warmińsko_Mazurskie"]
[null,null,null,"Olsztyn"]
[null,null,null,"Elbląg"]
[null,null,null,"Wielkopolskie"]
[null,null,null,"Poznań"]
[null,null,null,"Konin"]
[null,null,null,"Kalisz"]
[null,null,null,"Leszno"]
[null,null,null,"Piła"]
[null,null,null,"Zachodniopomorskie"]
[null,null,null,"Szczecin"]
[null,null,null,"Koszalin"]